Cogmind - Beta 14 @@@ ROGUE MODE // 2025.01.17 @ 11:13:46 Player: K.Ioz Result: Destroyed by DAS Turret with DAS Cannon Performance ------------- Evolutions (1) 500 Regions Visited (5) 1000 Robots Destroyed (75) 375 Value Destroyed (1694) 1694 Prototype IDs (27) 540 Alien Tech Used (0) 0 Bonus (-1080) -1080 TOTAL SCORE: 3029 Bonus ------- Follower Combat Kills 126 Aligned with FarCom 300 Friendly Fire -1506 Cogmind --------- Core Integrity 0/400 Matter 261/300 Energy 279/280 System Corruption 2% Temperature Cool (0) Movement Core (250) Ox4 Location -9/Exiles Parts ------- > --- POWER (1) -------- Cooled Ion Engine > --- PROPULSION (3) --- (None) > --- UTILITY (2) ------ (None) > --- WEAPON (3) ------- 8R-AWN's Boregun > --- INVENTORY (5) ---- Cooled Ion Engine YI-UF0's Bottomless Matter Pit (1018) Peak State ------------ > --- POWER ------------ Cooled Ion Engine > --- PROPULSION ------- Light Treads Light Treads Light Treads > --- UTILITY ---------- Large Storage Unit Supersonic Drone Bay > --- WEAPON ----------- Pulse Rifle Heavy Particle Gun Heavy Assault Rifle > --- INVENTORY -------- Cooling System Signal Interpreter Salvage Targeting Computer Light Armor Plating Heavy Particle Gun Particle Cannon Heavy Assault Rifle Autogun Rocket Launcher Plasma Cutter [Rating: 26] Favorites ----------- Power Ion Engine Engine Ion Engine Propulsion Light Treads Treads Light Treads Utility Large Storage Unit Device Improved Heat Sink Storage Large Storage Unit Processor Salvage Targeting Computer Hackware Hacking Suite Weapon Heavy Assault Rifle Energy Gun Pulse Rifle Energy Cannon Particle Cannon Ballistic Gun Heavy Assault Rifle Launcher Grenade Launcher Build | -11 -10 -10 -9 -9 -9 ------- Run | Yrd Mat Min Mat Min Exi Slots Evolved 2 | . . . 2 . . Power . | . . . . . . Propulsion 1 | . . . 1 . . Utility . | . . . . . . Weapon 1 | . . . 1 . . Parts Attached 68 | 6 10 5 26 2 19 Power 8 | 1 1 . 4 . 2 Engine 8 | 1 1 . 4 . 2 Core . | . . . . . . Reactor . | . . . . . . Propulsion 16 | 2 2 1 8 . 3 Treads 16 | 2 2 1 8 . 3 Leg . | . . . . . . Wheel . | . . . . . . Hover . | . . . . . . Flight . | . . . . . . Utility 15 | 1 5 2 3 . 4 Device 8 | . 2 1 2 . 3 Storage 5 | 1 2 1 1 . . Processor 1 | . . . . . 1 Hackware 1 | . 1 . . . . Protection . | . . . . . . Artifact . | . . . . . . Weapon 29 | 2 2 2 11 2 10 Energy Gun 9 | 1 . 1 3 1 3 Energy Cannon 1 | . . . . . 1 Ballistic Gun 13 | 1 2 . 6 . 4 Ballistic Cannon . | . . . . . . Launcher 6 | . . 1 2 1 2 Special Weapon . | . . . . . . Impact Weapon . | . . . . . . Slashing Weapon . | . . . . . . Piercing Weapon . | . . . . . . Special Melee Weapon . | . . . . . . Unidentified Prototypes 4 | . . 1 2 . 1 Parts Lost 21 | . 2 2 . . 17 Power 1 | . . . . . 1 Propulsion 7 | . . 1 . . 6 Utility 3 | . 1 . . . 2 Weapon 10 | . 1 1 . . 8 Highest Loss Streak 15 | . 1 1 . . 15 To Critical Strikes 14 | . . . . . 14 Average Slot Usage (%) 96 | . 98 99 99 100 92 Engine 12 | . 14 14 11 11 11 Treads 30 | . 27 28 32 33 30 Device 11 | . 12 13 10 11 9 Storage 10 | . 14 14 11 11 6 Energy Gun 16 | . 14 14 19 22 15 Ballistic Gun 12 | . 13 3 12 11 16 Launcher 1 | . . 10 . . . Peak Build Rating 26 | 6 10 16 21 21 26 Average Rating 15 | 4 9 10 18 20 20 On Entrance 11 | . 6 10 11 21 21 Naked Turns . | . . . . . . Heaviest Build 40 | 13 29 31 40 39 39 Greatest Support 60 | 40 40 40 60 60 60 Greatest Overweight (x) 5 | . . . . . 5 Average Overweight (x) . | . . . . . . Largest Inventory Capacity 15 | 8 15 15 15 15 15 Average Capacity 12 | 6 10 15 15 15 11 Most Carried 15 | 4 11 15 15 15 15 Average Carried 11 | 2 8 13 14 15 9 Final Capacity 15 | 8 15 15 15 15 5 Final Carried 15 | 4 11 13 15 15 2 Class Distribution -------------------- 40% | Mutant 31% | Gunner 28% | Scavenger-Gunner Dominant Class ---------------- Mutant | -10/Materials Mutant | -10/Mines Scavenger-Gunner | -9/Materials Gunner | -9/Mines Gunner | -9/Exiles Resources | -11 -10 -10 -9 -9 -9 ----------- Run | Yrd Mat Min Mat Min Exi Matter Collected 3357 | 231 422 1663 462 97 482 Remotely . | . . . . . . Salvage Created 2683 | . 820 244 1178 348 93 Parts 167 | . 36 14 91 25 1 Haulers Intercepted 7 | . 2 . 5 . . Recyclers Shooed . | . . . . . . Parts Field Recycled . | . . . . . . Retrieved Matter . | . . . . . . Parts Self-Destructed . | . . . . . . Prevented . | . . . . . . Kills | -11 -10 -10 -9 -9 -9 ------- Run | Yrd Mat Min Mat Min Exi Combat Hostiles Destroyed 62 | . 13 10 21 11 7 Guns 48 | . 13 5 17 9 4 AOE 14 | . . 5 4 2 3 Classes Destroyed 11 | . 5 2 3 1 . Builder 3 | . . . 3 . . Tunneler 3 | . . . 2 1 . Hauler 7 | . 2 . 5 . . Recycler 2 | . 1 . 1 . . Operator 2 | . 1 . 1 . . Watcher 6 | . 3 . 3 . . Swarmer 16 | . . 3 9 4 . Grunt 26 | . 13 2 5 6 . Brawler 1 | . . . . 1 . Sentry 7 | . . . 7 . . Assembled 11 | . . 5 . . 6 Best Kill Streak 8 | . 3 3 8 3 6 Combat Bots Only 6 | . 3 3 4 3 6 Max Kills in Single Turn 3 | . 1 2 3 3 2 Gunslinging 1 | . . . 1 . . Exploded 2 | . . 2 2 2 1 Melee . | . . . . . . Uniques/NPCs Destroyed 2 | . . 1 . . 1 YI-UF0 (-10/Mines) 8R-AWN (-9/Exiles) Combat | -11 -10 -10 -9 -9 -9 -------- Run | Yrd Mat Min Mat Min Exi Hostile Shots Fired 350 | . 74 55 63 35 123 Missed 106 | . 27 14 26 8 31 Damage Taken 3727 | . 633 513 444 274 1863 Core 643 | . 115 90 44 23 371 Absorbed by Shields . | . . . . . . Regen/Repaired (Parts) 98 | . 98 . . . . Core Remaining (%) 59 | 100 . 18 . . . Volleys Fired 277 | . 90 46 60 22 59 Largest 3 | . 2 2 3 3 3 Hottest 186 | . 70 80 141 141 186 Shots Fired 622 | . 179 92 174 63 114 Gun 594 | . 179 83 171 62 99 Cannon 6 | . . . . . 6 Launcher 22 | . . 9 3 1 9 Special . | . . . . . . Kinetic 271 | . 89 37 73 22 50 Thermal 329 | . 90 46 98 40 55 Explosive 22 | . . 9 3 1 9 Electromagnetic . | . . . . . . Robot Hit Streak 17 | . 17 15 13 5 13 Robot Miss Streak 6 | . 6 5 4 3 4 Penetration Max . | . . . . . . Secondary Targets 5 | . 1 . 4 . . Max Gunslinging Chain 1 | . 1 . 1 . . Shots Hit Robots 390 | . 117 58 107 33 75 Core Hits 163 | . 44 25 52 16 26 Critical Kills 1 | . 1 . . . . Critical Parts Destroyed . | . . . . . . Critical Strikes 17 | . 9 2 6 . . Burn 16 | . 8 2 6 . . Destroy 1 | . 1 . . . . Melee Attacks . | . . . . . . Impact . | . . . . . . Slashing . | . . . . . . Piercing . | . . . . . . Sneak Attacks . | . . . . . . Combat Hostiles . | . . . . . . Follow-up Attacks . | . . . . . . Damage Inflicted 6196 | . 1340 939 1792 722 1403 Guns 5108 | . 1339 550 1571 582 1066 Cannons 62 | . . . . . 62 Explosions 1023 | . . 387 221 140 275 Melee . | . . . . . . Ramming 3 | . 1 2 . . . Kinetic 2066 | . 615 235 584 170 462 Thermal 3104 | . 724 315 987 412 666 Explosive 1023 | . . 387 221 140 275 Electromagnetic . | . . . . . . Impact . | . . . . . . Slashing . | . . . . . . Piercing . | . . . . . . Highest Corruption 2 | . . . . . 2 Average Corruption 2 | . . . . . 2 Corruption Purged . | . . . . . . Corruption Blocked . | . . . . . . Effects 4 | . . . . . 4 Message Errors 1 | . . . . . 1 Matter Fused 1 | . . . . . 1 Heat Flow Errors 1 | . . . . . 1 Data Loss (minor) 1 | . . . . . 1 Overload Shots . | . . . . . . Overflow Damage 37 | . . 18 . 12 7 Projectiles . | . . . . . . Explosions 37 | . . 18 . 12 7 Melee . | . . . . . . Knockbacks . | . . . . . . Impact . | . . . . . . Kinetic . | . . . . . . Secondary . | . . . . . . Self-Inflicted Damage 258 | . . 121 . . 137 Shots 8 | . . 5 . . 3 Rammed 2 | . 1 1 . . . Targets Rammed 2 | . 1 1 . . . Kicked . | . . . . . . Crushed . | . . . . . . Highest Temperature 415 | . 196 22 138 27 415 Average Temperature 80 | . 35 2 29 12 220 Received Heat Transfer 573 | . 354 33 96 90 . Effects 11 | . . . . . 11 Shutdowns 2 | . . . . . 2 Energy Bleed 3 | . . . . . 3 Interference 2 | . . . . . 2 Matter Decay 3 | . . . . . 3 Damage (minor) 1 | . . . . . 1 Siege Activations . | . . . . . . Robots Corrupted . | . . . . . . Combat Hostiles . | . . . . . . Parts Fried . | . . . . . . Impact Corruptions . | . . . . . . Robots Melted . | . . . . . . Combat Hostiles . | . . . . . . Parts Melted 8 | . 3 1 2 2 . Heat Transferred 7733 | . 2738 1073 2738 851 333 Parts Sabotaged . | . . . . . . Parts Stolen . | . . . . . . Parts Stripped . | . . . . . . Power Chain Reactions . | . . . . . . Alert | -11 -10 -10 -9 -9 -9 ------- Run | Yrd Mat Min Mat Min Exi Peak Influence 343 | . 164 155 343 275 . Initial 117 | . . 14 . 117 . Average 113 | . 57 36 189 195 . Maximum Alert Level 1 | . . . 1 1 . Low Security (%) 78 | 100 100 100 54 52 . Level 1 21 | . . . 45 47 . Level 2 . | . . . . . . Level 3 . | . . . . . . Level 4 . | . . . . . . Level 5 . | . . . . . . High Security . | . . . . . . Max Security . | . . . . . . Squads Dispatched 5 | . 3 . 2 . . Investigation 2 | . 1 . 1 . . Extermination . | . . . . . . Reinforcement 3 | . 2 . 1 . . Assault . | . . . . . . Garrison . | . . . . . . Intercept . | . . . . . . Searches Triggered . | . . . . . . Construction Impeded . | . . . . . . Haulers Reinforced . | . . . . . . Active Scanning Responses . | . . . . . . Cargo Convoy Interrupts . | . . . . . . Stealth | -11 -10 -10 -9 -9 -9 --------- Run | Yrd Mat Min Mat Min Exi Distress Signals 5 | . 1 . 4 . . Communications Jammed . | . . . . . . Distress Signals . | . . . . . . Times Spotted 97 | . 24 12 36 15 10 Peak Tracking Total 9 | . 3 3 7 4 9 Tactical Retreats 4 | . . . 1 2 1 Traps | -11 -10 -10 -9 -9 -9 ------- Run | Yrd Mat Min Mat Min Exi Traps Triggered 2 | . 2 . . . . Indirectly . | . . . . . . Trap Hack Attempts . | . . . . . . Triggered . | . . . . . . Disarmed . | . . . . . . Reprogrammed . | . . . . . . Reused . | . . . . . . Traps Extracted . | . . . . . . Installed 3 | . . 3 . . . Triggered . | . . . . . . Machines | -11 -10 -10 -9 -9 -9 ---------- Run | Yrd Mat Min Mat Min Exi Machines Disabled 11 | . . 1 1 1 8 Max in Single Turn 3 | . . 1 . 1 3 Machines Repaired . | . . . . . . Machines Dismantled . | . . . . . . Machines Sabotaged . | . . . . . . Overloaded Fab Kills . | . . . . . . Hacking | -11 -10 -10 -9 -9 -9 --------- Run | Yrd Mat Min Mat Min Exi Machines Accessed 17 | . 9 . 7 . 1 Terminals 14 | . 7 . 7 . . Fabricators . | . . . . . . Repair Stations 1 | . 1 . . . . Recycling Units 1 | . 1 . . . . Scanalyzers . | . . . . . . Garrison Access . | . . . . . . Total Hacks 44 | . 26 . 17 . 1 Successful 20 | . 14 . 5 . 1 Failed 24 | . 12 . 12 . . Catastrophic 1 | . 1 . . . . Database Lockouts . | . . . . . . Manual 31 | . 14 . 16 . 1 Terminals 38 | . 21 . 17 . . Fabricators . | . . . . . . Repair Stations 3 | . 3 . . . . Recycling Units 2 | . 2 . . . . Scanalyzers . | . . . . . . Garrison Access . | . . . . . . Terminal Hacks 5 | . 3 . 1 . 1 Unreport Threat 1 | . 1 . . . . Locate Traps 1 | . 1 . . . . Transport Status 1 | . 1 . . . . Recall Reinforcements 1 | . . . 1 . . Derelict Proto ID Bank 1 | . . . . . 1 Fabricator Hacks . | . . . . . . Repair Station Hacks 2 | . 2 . . . . Scan Component 1 | . 1 . . . . Repair 1 | . 1 . . . . Recycling Unit Hacks 1 | . 1 . . . . Retrieve Components 1 | . 1 . . . . Scanalyzer . | . . . . . . Garrison Access Hacks . | . . . . . . Unauthorized Hacks 12 | . 8 . 4 . . Terminals 12 | . 8 . 4 . . Botnet 2 | . 2 . . . . Operators 1 | . 1 . . . . Skim 9 | . 5 . 4 . . Fabricators . | . . . . . . Repair Stations . | . . . . . . Recycling Units . | . . . . . . Scanalyzers . | . . . . . . Garrison Access . | . . . . . . Data Cores Recovered 1 | . . . 1 . . Used . | . . . . . . Hacking Detections 14 | . 7 . 7 . . Full Trace Events 4 | . 2 . 2 . . Feedback Events 1 | . 1 . . . . Hackware Fried 1 | . 1 . . . . Feedback Blocked . | . . . . . . Robot Schematics Acquired . | . . . . . . Robots Built . | . . . . . . Authchips . | . . . . . . Time . | . . . . . . Total Robot Build Rating . | . . . . . . Part Schematics Acquired . | . . . . . . Parts Built . | . . . . . . Authchips . | . . . . . . Time . | . . . . . . Total Part Build Rating . | . . . . . . Parts Repaired 1 | . 1 . . . . Time 26 | . 26 . . . . Parts Recycled . | . . . . . . Recycled Matter . | . . . . . . Retrieved Matter . | . . . . . . Retrieved Components 1 | . 1 . . . . Parts Scanalyzed . | . . . . . . Part Schematics Acquired . | . . . . . . Parts Damaged . | . . . . . . Bothacking | -11 -10 -10 -9 -9 -9 ------------ Run | Yrd Mat Min Mat Min Exi Used RIF Installer . | . . . . . . Robots Hacked . | . . . . . . Non-combat . | . . . . . . Combat . | . . . . . . Robot Hacks Applied . | . . . . . . Relay Couplers Released . | . . . . . . Fabnet Peak Effective % . | . . . . . . Robots Rewired . | . . . . . . Allies Hacked . | . . . . . . Hacks Repelled . | . . . . . . Allies | -11 -10 -10 -9 -9 -9 -------- Run | Yrd Mat Min Mat Min Exi Total Allies 3 | . . 3 . . . Largest Group 3 | . . 3 3 . . Highest-Rated Group 40 | . . 40 40 . . Highest-Rated Ally 16 | . . 16 16 . . Total Orders 1 | . . . . . 1 RETURN 1 | . . . . . 1 Ally Attacks 44 | . . 14 30 . . Total Damage 394 | . . 70 324 . . Kills 9 | . . 3 6 . . Allies Corrupted . | . . . . . . Allies Melted . | . . . . . . Intel | -11 -10 -10 -9 -9 -9 ------- Run | Yrd Mat Min Mat Min Exi Robot Analysis Total . | . . . . . . Derelict Logs Recovered 3 | . . 1 . 2 . Drone Launches 1 | . . . . . 1 Drone Recoveries 1 | . . . . . 1 Exploration | -11 -10 -10 -9 -9 -9 ------------- Run | Yrd Mat Min Mat Min Exi Turns Passed 9677 | 113 1987 1438 2233 800 3106 Spaces Moved 5127 | 65 1007 805 1050 451 1749 Core 76 | 3 . . . . 73 Treads 5051 | 62 1007 805 1050 451 1676 Legs . | . . . . . . Wheels . | . . . . . . Hover . | . . . . . . Flight . | . . . . . . Fastest Speed 50 | 50 160 160 160 160 160 Average Speed 161 | 154 160 160 160 160 165 Slowest Speed 300 | 160 160 160 160 160 300 Overloaded Moves . | . . . . . . Propulsion Burnouts . | . . . . . . Robots Hopped . | . . . . . . Cave-ins Triggered . | . . . . . . Exploration Rate (%) 76 | 6 100 95 80 87 90 Regions Visited 5 Branch Regions 3 Pre-discovered Areas 1 | . . 1 . . . Known Exits Taken . | . . . . . . Unknown Exits Taken 5 | 1 1 1 1 1 . Scrap Searched 3 | . . 1 . 2 . Spaces Dug . | . . . . . . Terrain Destroyed 118 | . . 53 21 8 36 Melee . | . . . . . . Projectile . | . . . . . . AOE 118 | . . 53 21 8 36 Terrain Rammed . | . . . . . . Walls Destroyed . | . . . . . . Machines Disabled . | . . . . . . Actions | -11 -10 -10 -9 -9 -9 --------- Run | Yrd Mat Min Mat Min Exi Total 6012 | 74 1215 870 1488 480 1885 Wait 409 | . 91 4 287 4 23 Move 5122 | 64 1006 804 1049 450 1749 Hop . | . . . . . . Pick Up 59 | 4 11 5 26 1 12 Fast Attach 20 | 6 2 . 6 . 6 Attach 16 | . 2 3 2 . 9 Detach 3 | . . 1 . . 2 Swap 32 | . 6 2 18 2 4 Drop 69 | . 6 1 40 1 21 Fire 277 | . 90 46 60 22 59 Melee . | . . . . . . Ram . | . . . . . . Kick . | . . . . . . Crush 2 | . 1 1 . . . Escape Stasis . | . . . . . . Rewire . | . . . . . . Trap 3 | . . 3 . . . Miscellaneous . | . . . . . . Route ------- -11/Scrapyard -10/Materials (discovered 4 exits: *Mat x3 / *Min) -10/Mines -9/Materials (discovered 4 exits: [*Mat x3] / [*Min]) -9/Mines (discovered 2 exits: [*Mat] / *Exi) -9/Exiles (discovered 2 exits: [*Min x2]) History --------- Turn | Location | Event 19 | -11/Scrapyard | Discovered new exit (range 13) 114 | -11/Scrapyard | Entered Materials 313 | -10/Materials | Build established: Mutant 515 | -10/Materials | Repaired Lgt. Treads 628 | -10/Materials | Discovered new exit (range 8) 773 | -10/Materials | Discovered new exit (range 16) 1252 | -10/Materials | Discovered new exit (range 8) 1453 | -10/Materials | Discovered new exit (range 10) 1545 | -10/Materials | Hacking Suite fried by hacking feedback 2101 | -10/Materials | Entered Mines 2106 | -10/Mines | Core integrity fell below 50% 2197 | -10/Mines | Discovered new exit (range 5) 2260 | -10/Mines | YI-UF0 nonchalantly dropped a Grenade Launcher on the ground 2329 | -10/Mines | Murdered YI-UF0 2337 | -10/Mines | Found Prototype Storage 2341 | -10/Mines | Identified YI-UF0's Bottomless Matter Pit 2367 | -10/Mines | Learned location of Storage (-9) 2442 | -10/Mines | Assembled infested the area 2447 | -10/Mines | Assisted by a Guerilla fighting off Assembled 2522 | -10/Mines | Core integrity fell below 20% 2580 | -10/Mines | Found a hidden stash of uninstalled traps 2724 | -10/Mines | Assisted by bots powering up and referring to "LRC-V3" 3539 | -10/Mines | Entered Materials 3539 | -9/Materials | Accompanied by 3 allies 3539 | -9/Materials | Evolved 2 slots: Propulsion x1, Weapon x1 3876 | -9/Materials | Build established: Scavenger-Gunner 4367 | -9/Materials | Discovered new exit (range 13) 5015 | -9/Materials | Discovered new exit (range 9) 5045 | -9/Materials | Discovered new exit (range 16) 5477 | -9/Materials | Discovered new exit (range 16) 5772 | -9/Materials | Entered Mines 5818 | -9/Mines | Build established: Gunner 6107 | -9/Mines | Discovered new exit (range 16) 6517 | -9/Mines | Deemed a non-threat by the Exiles lab entrance 6517 | -9/Mines | Discovered new exit (range 5) 6572 | -9/Mines | Entered Exiles 6612 | -9/Exiles | Met 8R-AWN 6640 | -9/Exiles | Met EX-HEX 6684 | -9/Exiles | Met EX-BIN 6753 | -9/Exiles | Met EX-DEC 6940 | -9/Exiles | Visited The Gauntlet 7488 | -9/Exiles | Discovered new exit (range 15) 8273 | -9/Exiles | Aligned with FarCom system 8275 | -9/Exiles | Given EX-Vault access code 8311 | -9/Exiles | Opened EX-Vault 8322 | -9/Exiles | Found Supersonic Drone Bay 8336 | -9/Exiles | Found Cloak of Protection 8372 | -9/Exiles | Warned to stay clear of 0b10 Research branches 8802 | -9/Exiles | Build established: Scavenger-Gunner 9218 | -9/Exiles | Attacked by the Exiles 9383 | -9/Exiles | Core integrity fell below 50% 9451 | -9/Exiles | Lost 15 parts (1p6n1u7w) 9461 | -9/Exiles | Destroyed 8R-AWN 9471 | -9/Exiles | Found Prototype Ballistic Gun 9490 | -9/Exiles | Identified 8R-AWN's Boregun 9519 | -9/Exiles | Discovered new exit (range 14) 9626 | -9/Exiles | Build established: Mutant 9663 | -9/Exiles | Core integrity fell below 20% 9678 | -9/Exiles | Destroyed by DAS Turret with DAS Cannon Last Messages --------------- 09458_ Penetrated by HV Slug. 09458_ HV Slug penetrates Earth. 09458_ HV Slug penetrates Wall. 09460_ Overheating: Cld. Ion Engine damaged (-17). 09461_ 8R-AWN destroyed. 09465_ The unstable cave ceiling collapses. 09465_ Extracted 156 matter. 09471_ Acquired Prototype Ballistic Gun. 09474_ TAKLSUDPHHSS2#YT=U4:QCPP%RQ E QTEGRYLE 09478_ Acquired Cld. Ion Engine. 09487_ Acquired YI-UF0's Bottomless Matter Pit. 09490_ Identified 8R-AWN's Boregun. 09519_ EXIT=FOUND 09645_ HV Slug penetrates Machine. 09645_ Machine disabled. 09645_ HV Slug penetrates Machine. 09663_ Knocked back. 09664_ HV Slug penetrates DAS Turret. 09665_ Knocked back. 09678_ Hvy. Particle Gun destroyed. Map ----- +----------------------------------------------------+ | ????????????????????????????????????????"""" ## | | ???????????????????????????????????????#""X" | | ???????????????????????????????????????#" | | ???????????????????????????????????????#" ## | | #??????????????????????????????????????#""""""?# | | ??????????????????????????????????????##"###??# | | #??????????????????????????????????????? ??????# | | #??????????????????????????????????????????????# | | ##????????????????????????????????????????????## | | #????????????#######?????????????????????????#" | | #######??????#!!! #?????????????????????????#" | | #""##?????# "#?????????????????????????#" | | #?????# "#?????????????????????????#" | | ##???## "#????????????######???????#" | | ##### #??????????? """#???????#" | | "#??????????#"" """#???????## | | # ##???????????#"" #????????# | | #"## #####???????#"" #????????#" | | ####### ## #???????#"" "#????????#" | | ??????## * # ##??????# ""#????????#" | | ######## # #???????"" ""#???????##" | | # !! # ###???????# #????????##"" | | #! %## ###???### ###?######"" | | #! # # %"" #####X# #"###""""""" | | ! ## " """""" " "" | | # ! # ####"# @ "" """ " | | # #####??#### % " " | | # ##?????????### % % | | # ##????????????### | | #????????????????#; % | | ###?????????????????### | | #??????????????????????## | | #????????????????????????# "" """"" | | ????????????????????????## ###### | | ????????????????????????#" ""##????# | | ????????????????????????#" " """##?????? | | ???????????????????????#"" """##??????? | | ???????????????????????#""" ""#???????? | | ???????????????????????#"" ########?? | | ???????????????????????#"" ## ### | | ???????????????????????#"" "" | | ???????????????????????##" | | ????????????????????????#"""" | | ????????????????????????## | | ?????????????????????????#" " | | ?????????????????????????#"""" ""## | | ?????????????????????????#"" ""#### | | ?????????????????????????#" """"##??# | | ?????????????????????????#""" """#???# | | ?????????????????????????## ""##???! | +----------------------------------------------------+ Best States ------------- Heat Dissipation 50 Energy Generation 14 Energy Capacity 280 Matter Stores 300 Matter Capacity 300 Sight Range 16 Terrain Scan Density 10 Evasion (%) 40 Recoil Reduction 3 Salvage Targeting 1 Item Schematics ----------------- None Robot Schematics ------------------ None Fabricated ------------ Nothing Alien Tech Used ----------------- None Achievements -------------- None Challenges ------------ None Game ------ Seed WarlordRecyclingVibroblade Manual? 0 Play Time 01:04:36 Cumulative 273.8 hours Start 2025.01.17 @ 09:14:46 End 2025.01.17 @ 11:13:46 Sessions 2 Manual Loads 0 Difficulty Rogue Special Mode None Game No. 179 Rogue 140 Adventurer 6 Explorer 33 Win Type - Total 6 Types 5/0/1/0/0/0/0/0/0 Lore% 46 Gallery% 69 Achievement% 65 Wizard Run 0 Options --------- Layout 2 ASCII 1 Keyboard 1 Movement Vi Keybinds 0 Fullscreen 0 Font 16/T_Terminus Map View 53x45 Zoom Use 0% Tactical HUD 1 Map Filters NONE Filters LOW_CONTRAST(47,30,31) Steam 1 RUN: ceed59ae-7020-49f5-96ea-335aa4653b59